Cogmind - Beta 11.1 @@@ ROGUE MODE // 2022.12.21 @ 09:16:10 Player: ChromeKnight Result: Destroyed by 8R-AWN with 8R-AWN's Boregun Performance ------------- Evolutions (1) 500 Regions Visited (5) 1000 Robots Destroyed (23) 115 Value Destroyed (471) 471 Prototype IDs (23) 460 Alien Tech Used (0) 0 Bonus (129) 129 TOTAL SCORE: 2675 Bonus ------- Follower Combat Kills 95 Aligned with FarCom 300 Friendly Fire -266 Cogmind --------- Core Integrity 0/400 Matter 204/300 Energy 99/1600 System Corruption 36% Temperature Cool (0) Movement Walking (90) Location -9/Exiles Parts ------- > --- POWER (1) -------- (None) > --- PROPULSION (2) --- Potential Leg Potential Leg > --- UTILITY (4) ------ Small Storage Unit Superbattery > --- WEAPON (2) ------- Mining Claw > --- INVENTORY (8) ---- Aluminum Leg Aluminum Leg Hover Unit Hover Unit Improved Heat Sink Compact Matter Pod (150) Peak State ------------ > --- POWER ------------ (None) > --- PROPULSION ------- Potential Leg Potential Leg > --- UTILITY ---------- Small Storage Unit Superbattery > --- WEAPON ----------- Latent Energy Streamer Rocket Launcher > --- INVENTORY -------- Aluminum Leg Aluminum Leg Hover Unit Hover Unit Improved Heat Sink Compact Matter Pod Mining Claw [Rating: 44] Favorites ----------- Power Ion Engine Engine Ion Engine Propulsion Aluminum Leg Leg Aluminum Leg Utility Small Storage Unit Storage Small Storage Unit Processor Targeting Computer Weapon Particle Gun Energy Gun Particle Gun Energy Cannon Latent Energy Streamer Ballistic Gun Light Assault Rifle Launcher Rocket Launcher Slashing Weapon Mining Claw Build | -11 -10 -10 -9 -9 -9 ------- Run | Scr Mat Min Mat Min Exi Slots Evolved 2 | . . . 2 . . Power . | . . . . . . Propulsion . | . . . . . . Utility 2 | . . . 2 . . Weapon . | . . . . . . Parts Attached 27 | 6 4 2 . 9 6 Power 4 | 1 . . . 3 . Engine 4 | 1 . . . 3 . Core . | . . . . . . Reactor . | . . . . . . Propulsion 9 | 2 2 1 . 2 2 Treads . | . . . . . . Leg 9 | 2 2 1 . 2 2 Wheel . | . . . . . . Hover . | . . . . . . Flight . | . . . . . . Utility 3 | 1 1 . . . 1 Device . | . . . . . . Storage 2 | 1 . . . . 1 Processor 1 | . 1 . . . . Hackware . | . . . . . . Protection . | . . . . . . Artifact . | . . . . . . Weapon 11 | 2 1 1 . 4 3 Energy Gun 3 | 2 1 . . . . Energy Cannon 1 | . . . . . 1 Ballistic Gun 3 | . . . . 3 . Ballistic Cannon . | . . . . . . Launcher 3 | . . 1 . 1 1 Special Weapon . | . . . . . . Impact Weapon . | . . . . . . Slashing Weapon 1 | . . . . . 1 Piercing Weapon . | . . . . . . Special Melee Weapon . | . . . . . . Unidentified Prototypes . | . . . . . . Parts Lost 9 | . 1 . . 5 3 Power 3 | . . . . 2 1 Propulsion 1 | . 1 . . . . Utility 1 | . . . . 1 . Weapon 4 | . . . . 2 2 Highest Loss Streak 4 | . 1 . . 4 2 To Critical Strikes . | . . . . . . Average Slot Usage (%) 81 | . 87 100 77 72 64 Engine 11 | . 14 14 11 10 8 Leg 24 | . 27 28 22 22 21 Storage 13 | . 14 14 11 11 17 Processor 7 | . 2 14 11 7 . Energy Gun 13 | . 28 20 11 7 . Energy Cannon 1 | . . . . . 6 Ballistic Gun 3 | . . . . 6 8 Launcher 5 | . . 7 11 7 . Naked Turns . | . . . . . . Heaviest Build 23 | 13 14 17 17 17 23 Greatest Support 60 | 20 20 20 20 20 60 Greatest Overweight (x) 3 | . 1 . . . 3 Average Overweight (x) . | . . . . . . Largest Inventory Capacity 8 | 8 8 8 8 8 8 Average Capacity 7 | 6 8 8 8 8 8 Most Carried 8 | . 8 8 8 8 8 Average Carried 7 | . 4 7 8 7 7 Final Capacity 8 | 8 8 8 8 8 8 Final Carried 8 | . 8 8 8 8 6 Class Distribution -------------------- 100% | Mutant Dominant Class ---------------- Mutant | -10/Materials Mutant | -10/Mines Mutant | -9/Materials Mutant | -9/Mines Mutant | -9/Exiles Resources | -11 -10 -10 -9 -9 -9 ----------- Run | Scr Mat Min Mat Min Exi Matter Collected 539 | 182 113 74 . 142 28 Remotely . | . . . . . . Salvage Created 719 | . 294 133 20 148 124 Parts 43 | . 20 6 2 15 . Haulers Intercepted . | . . . . . . Recyclers Shooed 2 | . 2 . . . . Parts Field Recycled . | . . . . . . Retrieved Matter . | . . . . . . Parts Self-Destructed . | . . . . . . Prevented . | . . . . . . Kills | -11 -10 -10 -9 -9 -9 ------- Run | Scr Mat Min Mat Min Exi Combat Hostiles Destroyed 26 | . 5 7 . 7 7 Guns 11 | . 5 4 . 2 . Cannons 1 | . . . . . 1 AOE 14 | . . 3 . 5 6 Classes Destroyed 6 | . 4 2 . . . Recycler 2 | . 1 1 . . . Operator 1 | . 1 . . . . Watcher 3 | . 2 . 1 . . Swarmer 8 | . . 4 . 4 . Grunt 9 | . 5 . . 4 . Assembled 10 | . . 3 . . 7 Best Kill Streak 7 | . 3 3 1 4 7 Combat Bots Only 7 | . 2 3 . 4 7 Max Kills in Single Turn 3 | . 2 2 1 2 3 Gunslinging . | . . . . . . Exploded 3 | . . 2 . 2 3 Melee . | . . . . . . Uniques/NPCs Destroyed . | . . . . . . Combat | -11 -10 -10 -9 -9 -9 -------- Run | Scr Mat Min Mat Min Exi Damage Taken 1827 | . 169 182 52 561 863 Core 463 | . 11 47 . 151 254 Absorbed by Shields . | . . . . . . Core Remaining (%) 88 | 100 . 76 . . . Volleys Fired 63 | . 25 9 1 14 14 Largest 2 | . 2 2 2 2 2 Hottest 105 | . 90 105 98 98 93 Shots Fired 108 | . 50 18 2 21 17 Gun 80 | . 50 14 1 15 . Cannon 13 | . . . . . 13 Launcher 15 | . . 4 1 6 4 Special . | . . . . . . Kinetic 5 | . . . . 5 . Thermal 75 | . 50 14 1 10 . Explosive 15 | . . 4 1 6 4 Electromagnetic 13 | . . . . . 13 Robot Hit Streak 10 | . 9 6 3 6 10 Robot Miss Streak 4 | . 4 1 1 4 1 Penetration Max . | . . . . . . Secondary Targets 1 | . 1 . . . . Max Gunslinging Chain 1 | . 1 . . . . Shots Hit Robots 73 | . 28 12 1 10 22 Core Hits 70 | . 18 9 1 13 29 Critical Kills . | . . . . . . Critical Parts Destroyed . | . . . . . . Critical Strikes 1 | . . . . 1 . Burn 1 | . . . . 1 . Melee Attacks 10 | . . . . . 10 Impact . | . . . . . . Slashing 10 | . . . . . 10 Piercing . | . . . . . . Sneak Attacks . | . . . . . . Combat Hostiles . | . . . . . . Follow-up Attacks . | . . . . . . Damage Inflicted 1797 | . 336 420 65 434 542 Guns 597 | . 336 138 18 105 . Cannons 28 | . . . . . 28 Explosions 971 | . . 282 47 318 324 Melee 190 | . . . . . 190 Ramming 11 | . . . . 11 . Kinetic 21 | . . . . 21 . Thermal 576 | . 336 138 18 84 . Explosive 731 | . . 282 47 318 84 Electromagnetic 268 | . . . . . 268 Impact . | . . . . . . Slashing 190 | . . . . . 190 Piercing . | . . . . . . Highest Corruption 36 | . . . . 13 36 Average Corruption 15 | . . . . 13 17 Corruption Purged . | . . . . . . Corruption Blocked . | . . . . . . Effects 30 | . . . . 9 21 Message Errors 9 | . . . . 2 7 Matter Fused 4 | . . . . 1 3 Heat Flow Errors 3 | . . . . 2 1 Energy Discharges 1 | . . . . . 1 Data Loss (minor) 4 | . . . . . 4 Data Loss (major) 1 | . . . . 1 . Misfires 2 | . . . . 1 1 Alerts 3 | . . . . 1 2 Misdirections 1 | . . . . 1 . Weapon Failures 2 | . . . . . 2 Overload Shots . | . . . . . . Overflow Damage 32 | . . 19 . 6 7 Projectiles . | . . . . . . Explosions 32 | . . 19 . 6 7 Melee . | . . . . . . Knockbacks 1 | . . . . 1 . Impact 1 | . . . . 1 . Kinetic . | . . . . . . Secondary . | . . . . . . Self-Inflicted Damage 278 | . . 48 53 30 147 Shots 6 | . . 1 1 2 2 Rammed . | . . . . . . Targets Rammed 7 | . . . . 7 . Kicked 7 | . . . . 7 . Crushed . | . . . . . . Highest Temperature 246 | . 222 135 27 246 127 Average Temperature 65 | . 87 50 15 65 21 Received Heat Transfer 111 | . 96 . . 15 . Siege Activations . | . . . . . . Robots Corrupted . | . . . . . . Combat Hostiles . | . . . . . . Parts Fried . | . . . . . . Impact Corruptions . | . . . . . . Robots Melted . | . . . . . . Combat Hostiles . | . . . . . . Parts Melted 1 | . 1 . . . . Heat Transferred 1499 | . 881 322 37 259 . Parts Sabotaged . | . . . . . . Parts Stolen . | . . . . . . Parts Stripped . | . . . . . . Power Chain Reactions . | . . . . . . Missiles Intercepted . | . . . . . . Latent Energy Used 1019 | . . . . . 1019 LE Corruption 22 | . . . . . 22 Alert | -11 -10 -10 -9 -9 -9 ------- Run | Scr Mat Min Mat Min Exi Peak Influence 226 | . 134 226 130 195 . Initial 87 | . . 52 87 50 . Average 100 | . 53 84 113 139 . Maximum Alert Level 1 | . . 1 . . . Low Security (%) 94 | 100 100 85 100 100 . Level 1 5 | . . 14 . . . Level 2 . | . . . . . . Level 3 . | . . . . . . Level 4 . | . . . . . . Level 5 . | . . . . . . High Security . | . . . . . . Max Security . | . . . . . . Squads Dispatched 1 | . 1 . . . . Investigation . | . . . . . . Extermination . | . . . . . . Reinforcement 1 | . 1 . . . . Assault . | . . . . . . Garrison . | . . . . . . Intercept . | . . . . . . Searches Triggered . | . . . . . . Construction Impeded . | . . . . . . Haulers Reinforced . | . . . . . . Active Scanning Responses . | . . . . . . Cargo Convoy Interrupts . | . . . . . . Stealth | -11 -10 -10 -9 -9 -9 --------- Run | Scr Mat Min Mat Min Exi Distress Signals 3 | . 2 1 . . . Communications Jammed . | . . . . . . Distress Signals . | . . . . . . Times Spotted 35 | . 8 9 1 9 8 Peak Tracking Total 9 | . 2 3 . 4 9 Tactical Retreats 2 | . . 1 . 1 . Traps | -11 -10 -10 -9 -9 -9 ------- Run | Scr Mat Min Mat Min Exi Traps Triggered . | . . . . . . Indirectly . | . . . . . . Trap Hack Attempts . | . . . . . . Triggered . | . . . . . . Disarmed . | . . . . . . Reprogrammed . | . . . . . . Reused . | . . . . . . Traps Extracted . | . . . . . . Installed . | . . . . . . Triggered . | . . . . . . Machines | -11 -10 -10 -9 -9 -9 ---------- Run | Scr Mat Min Mat Min Exi Machines Disabled 6 | . . 1 1 1 3 Max in Single Turn 1 | . . 1 1 1 1 Machines Sabotaged . | . . . . . . Garrisons Compromised . | . . . . . . Overloaded Fab Kills . | . . . . . . Hacking | -11 -10 -10 -9 -9 -9 --------- Run | Scr Mat Min Mat Min Exi Machines Accessed 1 | . . . . . 1 Terminals . | . . . . . . Fabricators . | . . . . . . Repair Stations . | . . . . . . Recycling Units . | . . . . . . Scanalyzers . | . . . . . . Garrison Access . | . . . . . . Total Hacks 1 | . . . . . 1 Successful 1 | . . . . . 1 Failed . | . . . . . . Catastrophic . | . . . . . . Database Lockouts . | . . . . . . Manual 1 | . . . . . 1 Terminals . | . . . . . . Fabricators . | . . . . . . Repair Stations . | . . . . . . Recycling Units . | . . . . . . Scanalyzers . | . . . . . . Garrison Access . | . . . . . . Terminal Hacks 1 | . . . . . 1 EX-Prototype ID Bank 1 | . . . . . 1 Fabricator Hacks . | . . . . . . Repair Station Hacks . | . . . . . . Recycling Unit Hacks . | . . . . . . Scanalyzer . | . . . . . . Garrison Access Hacks . | . . . . . . Unauthorized Hacks . | . . . . . . Terminals . | . . . . . . Fabricators . | . . . . . . Repair Stations . | . . . . . . Recycling Units . | . . . . . . Scanalyzers . | . . . . . . Garrison Access . | . . . . . . Data Cores Recovered . | . . . . . . Used . | . . . . . . Hacking Detections . | . . . . . . Full Trace Events . | . . . . . . Feedback Events . | . . . . . . Feedback Blocked . | . . . . . . Robot Schematics Acquired . | . . . . . . Robots Built . | . . . . . . Authchips . | . . . . . . Time . | . . . . . . Total Robot Build Rating . | . . . . . . Part Schematics Acquired . | . . . . . . Parts Built . | . . . . . . Authchips . | . . . . . . Time . | . . . . . . Total Part Build Rating . | . . . . . . Parts Repaired . | . . . . . . Time . | . . . . . . Parts Recycled . | . . . . . . Recycled Matter . | . . . . . . Retrieved Matter . | . . . . . . Retrieved Components . | . . . . . . Parts Scanalyzed . | . . . . . . Part Schematics Acquired . | . . . . . . Parts Damaged . | . . . . . . Bothacking | -11 -10 -10 -9 -9 -9 ------------ Run | Scr Mat Min Mat Min Exi Used RIF Installer . | . . . . . . Robots Hacked . | . . . . . . Non-combat . | . . . . . . Combat . | . . . . . . Robot Hacks Applied . | . . . . . . Relay Couplers Released . | . . . . . . Fabnet Peak Effective % . | . . . . . . Robots Rewired . | . . . . . . Allies Hacked . | . . . . . . Hacks Repelled . | . . . . . . Allies | -11 -10 -10 -9 -9 -9 -------- Run | Scr Mat Min Mat Min Exi Total Allies 3 | . . . . 3 . Largest Group 3 | . . . . 3 . Highest-Rated Group 40 | . . . . 40 . Highest-Rated Ally 16 | . . . . 16 . Total Orders . | . . . . . . Ally Attacks 22 | . . . . 22 . Total Damage 218 | . . . . 218 . Kills 3 | . . . . 3 . Allies Corrupted . | . . . . . . Allies Melted . | . . . . . . Intel | -11 -10 -10 -9 -9 -9 ------- Run | Scr Mat Min Mat Min Exi Robot Analysis Total . | . . . . . . Derelict Logs Recovered 1 | . . . . 1 . Drone Launches . | . . . . . . Drone Recoveries . | . . . . . . Exploration | -11 -10 -10 -9 -9 -9 ------------- Run | Scr Mat Min Mat Min Exi Turns Passed 2407 | 54 345 694 125 766 423 Spaces Moved 1465 | 43 176 453 102 537 154 Core 10 | 9 . . . . 1 Treads . | . . . . . . Legs 1455 | 34 176 453 102 537 153 Wheels . | . . . . . . Hover . | . . . . . . Flight . | . . . . . . Fastest Speed 50 | 50 120 120 120 120 90 Average Speed 119 | 105 121 120 120 120 114 Slowest Speed 200 | 120 190 120 120 120 200 Overloaded Moves . | . . . . . . Propulsion Burnouts . | . . . . . . Robots Hopped . | . . . . . . Cave-ins Triggered 1 | . . . . 1 . Exploration Rate (%) 40 | 3 27 80 14 78 43 Regions Visited 5 Branch Regions 3 Pre-discovered Areas . | . . . . . . Known Exits Taken . | . . . . . . Unknown Exits Taken 5 | 1 1 1 1 1 . Scrap Searched 2 | . . 1 . 1 . Spaces Dug . | . . . . . . Terrain Destroyed 134 | . . 43 6 45 40 Melee . | . . . . . . Projectile . | . . . . . . AOE 134 | . . 43 6 45 40 Terrain Rammed . | . . . . . . Walls Destroyed . | . . . . . . Machines Disabled . | . . . . . . Actions | -11 -10 -10 -9 -9 -9 --------- Run | Scr Mat Min Mat Min Exi Total 1994 | 48 257 585 102 638 364 Wait 404 | . 43 119 . 66 176 Move 1460 | 42 175 452 101 536 154 Hop . | . . . . . . Pick Up 10 | . 8 1 . 1 . Fast Attach 17 | 6 2 1 . 4 4 Attach 3 | . . . . 1 2 Detach . | . . . . . . Swap 7 | . 2 1 . 4 . Drop 13 | . 2 2 . 5 4 Fire 63 | . 25 9 1 14 14 Melee 10 | . . . . . 10 Ram . | . . . . . . Kick 7 | . . . . 7 . Crush . | . . . . . . Escape Stasis . | . . . . . . Rewire . | . . . . . . Trap . | . . . . . . Miscellaneous . | . . . . . . Route ------- -11/Scrapyard -10/Materials -10/Mines -9/Materials -9/Mines (discovered 2 exits: [*Mat] / *Exi) -9/Exiles History --------- Turn | Location | Event 4 | -11/Scrapyard | Discovered new exit (range 15) 55 | -11/Scrapyard | Entered Materials 303 | -10/Materials | Build established: Mutant 369 | -10/Materials | Discovered new exit (range 8) 400 | -10/Materials | Entered Mines 401 | -10/Mines | Assembled infested the area 713 | -10/Mines | Received a Rocket Launcher from a helpful Derelict 892 | -10/Mines | Discovered new exit (range 9) 1094 | -10/Mines | Entered Materials 1094 | -9/Materials | Evolved 2 slots: Utility x2 1141 | -9/Materials | Discovered new exit (range 16) 1219 | -9/Materials | Entered Mines 1222 | -9/Mines | Assisted by bots powering up and referring to "LRC-V3" 1412 | -9/Mines | Discovered new exit (range 8) 1636 | -9/Mines | YI-UF0 nonchalantly dropped a Grenade Launcher on the ground 1756 | -9/Mines | Crushed by falling debris 1756 | -9/Mines | System corruption reached 10% 1787 | -9/Mines | Lost 4 parts (1p1u2w) 1980 | -9/Mines | Deemed a non-threat by the Exiles lab entrance 1980 | -9/Mines | Discovered new exit (range 5) 1985 | -9/Mines | Entered Exiles 2015 | -9/Exiles | Met 8R-AWN 2035 | -9/Exiles | Met EX-HEX 2074 | -9/Exiles | Met EX-BIN 2091 | -9/Exiles | Aligned with FarCom system 2092 | -9/Exiles | Given EX-Vault access code 2125 | -9/Exiles | Opened EX-Vault 2132 | -9/Exiles | Found Potential Leg 2135 | -9/Exiles | Found Potential Leg 2141 | -9/Exiles | Found Latent Energy Streamer 2144 | -9/Exiles | Found Superbattery 2284 | -9/Exiles | Attacked by the Exiles 2346 | -9/Exiles | Destroyed 7 combat bots 2349 | -9/Exiles | Core integrity fell below 50% 2349 | -9/Exiles | System corruption reached 30% 2396 | -9/Exiles | Core integrity fell below 20% 2408 | -9/Exiles | Destroyed by 8R-AWN with 8R-AWN's Boregun Last Messages --------------- 02389_ Penetrated by HV Slug. 02389_ HV Slug penetrates Wall. 02391_ Penetrated by HV Slug. 02391_ HV Slug penetrates Wall. 02391_ Penetrated by HV Slug. 02391_ HV Slug penetrates Wall. 02392_ Wall collapses. 02393_ Penetrated by HV Slug. 02393_ HV Slug penetrates Earth. 02393_ Penetrated by HV Slug. 02393_ HV Slug penetrates Earth. 02395_ System corrupted: Component data lost. 02395_ Latent Energy Streamer destroyed. 02395_ Destroyed Latent Energy Streamer. 02395_ HEX's Terminal disabled. 02395_ Penetrated by HV Slug. 02395_ HV Slug penetrates Earth. 02395_ Penetrated by HV Slug. 02400_ HV Slug penetrates HEX's Workstation. 02404_ Penetrated by HV Slug. Map ----- +----------------------------------------------------+ | | | | | | | | | | | | | | | | | | | | | | | | | ????????????????#########????????????????????????? | | ????????????????# #????????????????????????? | | ????????????????# [ #????????????????????????? | | ????????????????# [ #????????????????????????? | | ????????????????# = X#????????????????????????? | | ??????????????#### ##????????????????????????? | | ??????????????# ; #????????????????????????? | | ??????????????# ; #????????????????????????? | | ??????????????## #?###????????????????????? | | ???????????????### ##;;####?????????????????? | | ?????????????????# ; ""#?????????????????? | | ?????????????????# ; ""##????????????????? | | ?????????????????# g ;#????????????????? | | ?????????????????# ;;@ ""#?????????????????? | | ???????????####??# ;; ""#?????????????????? | | ???????????"""""?# #;; ####?????????????????? | | ??????????"""" ## % ### # #???????????????????? | | ?????????#""X" #??### #??????????????????? | | ?????????#" %"?????# #?????????????????? | | ?????????#" ## %#??????# #????????????????? | | ?????????#""""""?# "?#######;#???????????????? | | ??????????#"###??# ?#""""""";#??????????????? | | ?????????????????# ?#"""""""# ??????????????? | | ?????????????????# ?#"""""""#? ?????????????? | | ????????????????## ##"" """"#?? ????????????? | | ????????????????#" """"#???????????????? | | ????????????????#" """#???????????????? | | ????????????????#" """#???????????????? | | ????????????????#" """#???????????????? | | ????????????????#" """#???????????????? | | ????????????????#" """#???????????????? | | ????????????????## """"???????????????? | | ?????????????????# """#???????????????? | | ?????????????????#" "X" """????????????????? | | ?????????????????#" """ #???????????????? | | ?????????????????#" """""""""#???????????????? | | ????????????????##" ###########???????????????? | | ???????????????##"" #?????????????????????????? | +----------------------------------------------------+ Best States ------------- Heat Dissipation 28 Energy Generation 10 Energy Capacity 1625 Matter Stores 300 Matter Capacity 300 Sight Range 16 Terrain Scan Density 10 Evasion (%) 57 Targeting Accuracy 5 Item Schematics ----------------- None Robot Schematics ------------------ None Fabricated ------------ Nothing Alien Tech Used ----------------- None Achievements -------------- None Challenges ------------ None Game ------ Seed DeepThrusterRigger Manual? 0 Play Time 00:13:10 Cumulative 360.3 hours Start 2022.12.21 @ 09:04:52 End 2022.12.21 @ 09:16:10 Sessions 1 Manual Loads 0 Difficulty Rogue Special Mode None Game No. 635 Rogue 480 Adventurer 148 Explorer 7 Win Type - Total 13 Types 11/0/1/1/0/0/0/0/0 Lore% 75 Gallery% 88 Achievement% 68 Wizard Run 0 Options --------- ASCII 0 Keyboard 0 Movement Numpad Keybinds 0 Fullscreen 2 Font 18/SmallcapsGlow Map View 76x50 Tactical HUD 1 Map Filters NONE Filters NONE Steam 1 RUN: d6e0b152-ea45-4266-b95b-9471ffeb36af